bitfinex/quotes_SOLUSD_20240808
["timestamp","ask_amount","ask_price","bid_price","bid_amount"]
[1723141414363,45.0,157.28,157.14,22.9657]
[1723141414658,45.0,157.28,157.15,20.0]
[1723141415158,0.5,157.27,157.14,22.9657]
[1723141416661,0.5,157.27,157.15,20.0]
[1723141418457,45.0,157.28,157.16,1.27188233]
[1723141418669,45.0,157.28,157.15,40.0]
[1723141418965,16.1219,157.29,157.16,1.27190404]
[1723141419165,16.1219,157.29,157.17,20.0]
[1723141420248,0.5,157.28,157.15,20.0]
[1723141420561,16.1219,157.29,157.15,20.0]
[1723141421265,45.5,157.28,157.15,20.0]
[1723141422256,16.1219,157.29,157.15,20.0]
[1723141422776,16.1219,157.29,157.18,20.0]
[1723141422980,6.4829,157.31,157.2,20.0]
[1723141423293,0.5,157.3,157.21,20.0]
[1723141423474,16.4887,157.33,157.21,20.0]
[1723141423647,16.4887,157.33,157.19,20.0]
[1723141424049,0.5,157.32,157.19,20.0]
[1723141424248,45.0,157.32,157.17,20.0]
[1723141424466,45.0,157.32,157.18,7.63678117]
[1723141424671,45.5,157.32,157.19,20.0]
[1723141425173,45.5,157.32,157.18,20.0]
[1723141425472,45.5,157.32,157.19,7.6367913]
[1723141425775,45.5,157.32,157.2,20.0]
[1723141425976,16.4887,157.33,157.21,26.426]
[1723141426163,16.4887,157.33,157.23,20.0]
[1723141426473,16.4887,157.33,157.24,20.0]
[1723141426685,16.4887,157.33,157.22,35.0296]
[1723141426973,16.4887,157.33,157.22,20.0]
[1723141427194,16.4887,157.33,157.19,20.0]
[1723141427395,45.0,157.32,157.2,7.63638535]
[1723141427593,45.5,157.32,157.21,20.0]
[1723141427771,45.0,157.32,157.19,20.0]
[1723141428180,0.5,157.31,157.19,20.0]
[1723141428384,0.5,157.31,157.2,7.63662989]
[1723141428563,0.5,157.31,157.21,20.0]
[1723141429172,16.4887,157.33,157.2,20.0]
[1723141429375,16.4887,157.33,157.21,7.63600133]
[1723141429562,16.4887,157.33,157.22,20.0]
[1723141430164,16.4887,157.33,157.21,20.0]
[1723141430390,16.4887,157.33,157.22,7.63553822]
[1723141430575,16.4887,157.33,157.23,20.0]
[1723141430787,0.5,157.32,157.23,20.0]
[1723141431167,16.4887,157.33,157.21,20.0]
[1723141431362,16.4887,157.33,157.22,7.63558169]
[1723141431562,45.0,157.32,157.22,7.63558169]
[1723141431766,45.5,157.32,157.23,20.0]
[1723141432306,45.5,157.32,157.21,21.27176425]
[1723141432307,45.0,157.32,157.21,21.27176425]
[1723141432600,45.0,157.32,157.21,21.27161851]
[1723141433588,45.5,157.32,157.21,20.0]
[1723141435566,6.4507,157.31,157.21,20.0]
[1723141435770,61.9852,157.3,157.18,2.52007613]
[1723141435972,61.4852,157.3,157.16,15.79857257]
[1723141436166,61.4852,157.3,157.17,7.6374545]
[1723141436692,61.4852,157.3,157.17,27.6374545]
[1723141436872,61.4852,157.3,157.18,7.6374545]
[1723141437066,61.4852,157.3,157.19,20.0]
[1723141437604,61.4852,157.3,157.17,20.0]
[1723141437776,16.4852,157.3,157.19,20.0]
[1723141437977,16.4852,157.3,157.2,7.63742982]
[1723141438177,16.4852,157.3,157.21,20.0]
[1723141438782,16.4852,157.3,157.2,20.0]
[1723141439667,16.4852,157.3,157.21,1.27162233]
[1723141440395,45.0,157.29,157.2,20.0]
[1723141440603,16.4852,157.3,157.21,45.75162348]
[1723141440892,16.4852,157.3,157.22,20.0]
[1723141442079,45.0,157.29,157.22,20.0]
[1723141442480,45.0,157.29,157.21,20.0]
[1723141443389,15.0111,157.34,157.23,44.48]
[1723141443708,15.0111,157.34,157.25,24.48]
[1723141443918,15.0111,157.34,157.26,20.0]
[1723141444099,15.0111,157.38,157.26,20.0]
[1723141444417,15.0111,157.38,157.28,6.5749]
[1723141444593,15.0111,157.38,157.29,20.0]
[1723141446295,15.0111,157.38,157.3,1.27095023]
[1723141446901,15.0111,157.38,157.29,20.0]
[1723141448194,15.1733,157.42,157.32,20.0]
[1723141448500,45.0,157.41,157.33,20.0]
[1723141448910,0.5,157.4,157.33,20.0]
[1723141449113,0.5,157.4,157.31,20.0]
[1723141449415,0.5,157.4,157.29,22.477568]
[1723141449708,0.5,157.4,157.29,40.0]
[1723141450720,45.0,157.41,157.29,40.0]
[1723141450890,15.1733,157.42,157.29,40.0]
[1723141451089,15.1733,157.42,157.33,20.0]
[1723141452581,15.1733,157.42,157.31,20.0]
[1723141453398,45.0,157.41,157.33,20.0]
[1723141453601,45.0,157.41,157.3,20.0]
[1723141453920,16.0905,157.46,157.35,20.0]
[1723141454090,16.0905,157.46,157.36,20.0]
[1723141454290,16.0905,157.46,157.34,1.27047321]
[1723141454490,16.0905,157.46,157.36,21.7852]
[1723141454697,16.0905,157.46,157.37,20.0]
[1723141455821,0.5,157.45,157.37,20.0]
[1723141456019,0.5,157.45,157.33,20.0]
[1723141456389,45.5,157.45,157.33,20.0]
[1723141456702,45.5,157.45,157.32,24.59260542]
[1723141456891,45.5,157.45,157.32,2.49540542]
[1723141457110,16.3621,157.44,157.28,42.7563]
[1723141457309,16.3621,157.41,157.28,22.7563]
[1723141457535,0.5,157.4,157.28,6.115]
[1723141457736,0.5,157.39,157.28,6.115]
[1723141458620,0.5,157.39,157.29,20.0]
[1723141459031,45.0,157.4,157.3,21.27097963]
[1723141459207,45.0,157.4,157.31,20.0]
[1723141459712,16.3621,157.41,157.31,20.0]
[1723141459936,16.3621,157.41,157.32,20.0]
[1723141460235,16.3621,157.41,157.33,20.0]
[1723141460745,0.5,157.4,157.29,20.0]
[1723141460913,16.3621,157.41,157.29,20.0]
[1723141461627,45.0,157.4,157.29,20.0]
[1723141462213,45.0,157.4,157.31,20.0]
[1723141462460,45.0,157.4,157.29,40.0]
[1723141464218,45.0,157.4,157.3,1.27080575]
[1723141464720,45.0,157.4,157.29,40.0]
[1723141465554,0.5,157.39,157.29,20.0]
[1723141465742,0.5,157.39,157.28,6.115]
[1723141466229,45.0,157.4,157.28,6.115]
[1723141466760,45.0,157.4,157.29,20.0]
[1723141467230,45.0,157.4,157.3,20.0]
[1723141468642,0.5,157.39,157.3,20.0]
[1723141472034,45.0,157.4,157.31,24.45]
[1723141472237,45.0,157.4,157.32,20.0]
[1723141474148,0.5,157.39,157.32,20.0]
[1723141474359,0.5,157.39,157.3,20.0]
[1723141474651,69.45,157.4,157.3,20.0]
[1723141474856,0.5,157.39,157.29,20.0]
[1723141478649,24.45,157.38,157.29,20.0]
[1723141478839,6.2524,157.35,157.28,6.60741733]
[1723141479044,45.0,157.34,157.28,6.60741733]
[1723141480134,45.0,157.34,157.29,20.0]
[1723141480859,45.0,157.35,157.29,20.0]
[1723141481064,45.0,157.35,157.28,26.60740398]
[1723141482541,16.0099,157.36,157.29,25.72106041]
[1723141482744,16.0099,157.36,157.3,21.27093954]
[1723141482948,16.0099,157.36,157.3,20.0]
[1723141483658,16.0099,157.36,157.29,20.0]
[1723141483841,45.0,157.35,157.29,20.0]
[1723141486067,0.5,157.34,157.29,20.0]
[1723141486267,0.5,157.34,157.26,6.60750194]
[1723141486465,45.0,157.35,157.27,27.63317413]
[1723141486655,45.0,157.35,157.28,7.63317413]
[1723141486846,6.5947,157.39,157.29,44.45]
[1723141487042,15.0628,157.4,157.31,44.45]
[1723141487254,15.0628,157.4,157.33,24.45]
[1723141487560,15.0628,157.4,157.34,20.0]
[1723141491772,45.0,157.39,157.29,9.1576234]
[1723141491980,45.0,157.39,157.3,7.6315939]
[1723141492186,45.0,157.39,157.29,7.6315939]
[1723141493067,45.0,157.39,157.3,20.0]
[1723141493255,45.0,157.39,157.31,7.6315939]
[1723141493459,45.0,157.39,157.32,20.0]
[1723141493661,45.0,157.39,157.33,7.6315939]
[1723141493861,0.5,157.38,157.34,20.0]
[1723141494583,24.95,157.38,157.29,20.0]
[1723141494783,24.95,157.38,157.3,7.63190035]
[1723141494784,6.649,157.36,157.3,7.63190035]
[1723141494984,45.0,157.35,157.31,7.63190035]
[1723141495162,45.0,157.35,157.32,7.63190035]
[1723141495361,45.0,157.35,157.28,1.10609765]
[1723141495561,45.0,157.35,157.29,7.63217268]
[1723141496096,40.65,157.34,157.29,7.63217268]
[1723141496255,45.0,157.33,157.29,7.63217268]
[1723141496455,45.0,157.33,157.3,7.63217268]
[1723141496656,45.0,157.33,157.25,8.90351184]
[1723141496856,45.0,157.33,157.26,7.63217268]
[1723141497056,45.0,157.33,157.27,7.63217268]
[1723141497287,45.0,157.33,157.27,1.27134899]
[1723141497457,45.0,157.33,157.28,7.63217268]
[1723141497657,45.0,157.33,157.29,21.27122757]
[1723141497983,45.0,157.33,157.3,7.6325392]
[1723141498190,45.0,157.33,157.31,20.0]
[1723141498373,45.0,157.33,157.32,7.6325392]
[1723141500891,45.0,157.33,157.25,7.63266231]
[1723141501101,24.45,157.31,157.26,7.6329528]
[1723141501263,45.5,157.3,157.27,7.6329528]
[1723141501461,0.5,157.29,157.28,7.6329528]
[1723141501888,45.0,157.3,157.24,7.6329528]
[1723141502091,45.0,157.3,157.25,27.6329528]
[1723141502303,0.5,157.29,157.26,7.6329528]
[1723141502510,45.0,157.3,157.27,27.6329528]
[1723141502801,45.0,157.3,157.28,27.6329528]
[1723141503101,45.0,157.3,157.29,7.6329528]
[1723141503317,16.2,157.34,157.29,7.6329528]
[1723141503495,16.2,157.34,157.3,28.90420149]
[1723141503695,16.2,157.34,157.31,21.27120488]
[1723141503996,16.2,157.34,157.32,7.6329528]
[1723141504198,16.2,157.34,157.33,20.0]
[1723141504691,16.2,157.34,157.33,27.6329528]
[1723141505078,6.649,157.36,157.33,27.63201046]
[1723141505281,15.591,157.38,157.34,1.27104258]
[1723141505684,6.4315,157.4,157.34,1.27104258]
[1723141506293,6.4315,157.4,157.35,1.27085531]
[1723141506602,6.4315,157.4,157.33,1.27085531]
[1723141506813,45.0,157.39,157.34,7.63150409]
[1723141507015,6.4315,157.4,157.35,21.2708515]
[1723141507219,15.5643,157.42,157.36,1.27071449]
[1723141507504,22.4493,157.44,157.37,1.27055117]
[1723141507703,22.4493,157.44,157.34,20.0]
[1723141508506,24.45,157.43,157.33,22.51770194]
[1723141508803,24.45,157.41,157.34,27.63162084]
[1723141508992,45.0,157.4,157.29,9.1572519]
[1723141509179,45.0,157.4,157.28,12.8979651]
[1723141509180,40.0398,157.39,157.3,7.63178231]
[1723141509374,45.0,157.38,157.31,7.63178231]
[1723141509579,31.1915,157.37,157.29,7.63178231]
[1723141509815,45.0,157.36,157.29,7.63178231]
[1723141510503,15.5398,157.34,157.3,7.63178231]
[1723141510716,45.0,157.33,157.31,7.63178231]
[1723141511009,45.0,157.33,157.32,7.63232522]
[1723141511219,15.5398,157.38,157.32,7.63232522]
[1723141511387,15.5398,157.38,157.33,1.27092485]
[1723141511583,6.3034,157.41,157.34,7.63232522]
[1723141511990,6.3034,157.41,157.3,1.27089703]
[1723141512203,12.6563,157.41,157.31,7.63175786]
[1723141512409,6.3533,157.4,157.32,7.63175786]
[1723141512588,12.6563,157.41,157.33,7.63175786]
[1723141512787,45.0,157.4,157.26,7.63175786]
[1723141513009,45.0,157.4,157.27,28.90284765]
[1723141513314,45.0,157.4,157.28,7.63175786]
[1723141513489,45.0,157.4,157.29,7.63175786]
[1723141513812,45.0,157.4,157.3,27.63175786]
[1723141514125,45.0,157.4,157.31,7.63175786]
[1723141514282,45.0,157.4,157.32,20.0]
[1723141514604,45.0,157.4,157.33,7.63175786]
[1723141514799,45.0,157.4,157.34,20.0]
[1723141515396,45.0,157.4,157.3,21.27097064]
[1723141515588,45.0,157.4,157.31,7.63150938]
[1723141515779,45.0,157.4,157.32,20.0]
[1723141515983,45.0,157.4,157.33,7.63150938]
[1723141516210,45.0,157.4,157.34,20.0]
[1723141516795,45.0,157.4,157.3,21.27092406]
[1723141516983,45.0,157.4,157.31,7.63149228]
[1723141517200,45.0,157.4,157.32,20.0]
[1723141517403,45.0,157.4,157.33,7.63149228]
[1723141517605,45.0,157.4,157.34,20.0]
[1723141518240,45.0,157.4,157.28,20.0]
[1723141518404,45.0,157.4,157.29,7.63177288]
[1723141518604,45.0,157.4,157.3,20.0]
[1723141518914,45.0,157.4,157.31,7.63177288]
[1723141519236,45.0,157.4,157.32,20.0]
[1723141519420,45.0,157.4,157.33,7.63177288]
[1723141519610,45.0,157.4,157.34,20.0]
[1723141520233,45.0,157.4,157.28,20.0]
[1723141520430,45.0,157.4,157.29,8.90284108]
[1723141520609,45.0,157.4,157.3,27.6317711]
[1723141520810,45.0,157.4,157.31,7.6317711]
[1723141521131,45.0,157.4,157.32,20.0]
[1723141521332,45.0,157.4,157.33,7.6317711]
[1723141521633,45.0,157.4,157.34,20.0]
[1723141522108,45.0,157.4,157.28,21.27098991]
[1723141522309,45.0,157.4,157.29,7.63166658]
[1723141522505,45.0,157.4,157.3,21.27094947]
[1723141522715,45.0,157.4,157.31,7.63166658]
[1723141523030,45.0,157.4,157.32,20.0]
[1723141523231,45.0,157.4,157.33,7.63166658]
[1723141523420,45.0,157.4,157.34,20.0]
[1723141524009,45.0,157.4,157.29,1.27094947]
[1723141524204,6.3034,157.41,157.3,60.35257533]
[1723141524415,6.3034,157.41,157.31,27.63163079]
[1723141524628,6.3034,157.41,157.32,8.90238116]
[1723141524834,6.3034,157.41,157.33,21.27075094]
[1723141525026,6.3034,157.41,157.34,7.63126969]
[1723141525242,6.3034,157.41,157.35,21.27075138]
[1723141525412,6.3034,157.41,157.35,20.0]
[1723141525612,45.0,157.4,157.35,20.0]
[1723141525835,45.0,157.4,157.31,20.0]
[1723141526013,45.0,157.4,157.32,8.90236174]
[1723141526209,45.0,157.4,157.33,28.90225664]
[1723141526409,45.0,157.4,157.34,7.6315051]
[1723141526615,45.0,157.4,157.35,20.0]
[1723141526913,45.0,157.4,157.36,1.27075282]
[1723141527541,45.0,157.4,157.33,1.27075358]
[1723141527709,45.0,157.4,157.34,7.63134522]
[1723141527910,16.0915,157.42,157.35,21.2707538]
[1723141528112,16.0915,157.42,157.36,8.90164144]
[1723141528337,16.0915,157.42,157.37,20.0]
[1723141528549,16.0915,157.42,157.35,20.0]
[1723141528730,16.0915,157.42,157.36,7.6303273]
[1723141529042,16.0915,157.42,157.37,20.0]
[1723141529339,45.0,157.41,157.37,20.0]
[1723141529540,45.5,157.41,157.32,20.0]
[1723141529718,45.0,157.41,157.33,7.63067141]
[1723141529919,45.0,157.41,157.34,20.0]
[1723141530119,45.0,157.41,157.35,7.63067141]
[1723141530317,45.0,157.41,157.36,20.0]
[1723141530940,45.0,157.41,157.32,20.0]
[1723141531142,45.0,157.41,157.33,7.6306065]
[1723141531322,45.0,157.41,157.34,20.0]
[1723141531642,45.0,157.41,157.35,7.6306065]
[1723141531837,45.0,157.41,157.36,27.63067447]
[1723141532142,45.0,157.41,157.34,44.43]
[1723141532329,45.0,157.41,157.35,7.63067313]
[1723141532530,45.0,157.41,157.36,20.0]
[1723141533252,45.0,157.41,157.35,20.0]
[1723141533439,45.0,157.41,157.36,7.63063287]
[1723141533639,45.0,157.41,157.37,20.0]
[1723141534330,45.0,157.41,157.35,20.0]
[1723141534532,0.5,157.4,157.36,7.63067447]
[1723141534734,0.5,157.4,157.3,24.43]
[1723141535041,6.0387,157.38,157.31,7.63162005]
[1723141535219,45.0,157.37,157.3,24.43]
[1723141535417,45.0,157.37,157.31,7.63270845]
[1723141535737,15.7228,157.36,157.29,6.6079872]
[1723141535968,15.7228,157.36,157.3,7.6328982]
[1723141536128,45.0,157.35,157.26,24.43]
[1723141536332,45.0,157.35,157.27,8.90476333]
[1723141536545,45.0,157.35,157.28,20.0]
[1723141536746,45.0,157.35,157.29,7.63338406]
[1723141536942,45.0,157.35,157.3,7.63338406]
[1723141537142,45.0,157.35,157.27,7.63338406]
[1723141538133,45.0,157.35,157.28,20.0]
[1723141538322,45.0,157.35,157.29,7.63338406]
[1723141538524,45.0,157.35,157.3,20.0]
[1723141539220,45.0,157.35,157.27,21.27144727]
[1723141539421,45.0,157.35,157.28,7.63327159]
[1723141539717,45.0,157.35,157.29,20.0]
[1723141540317,45.0,157.35,157.27,20.0]
[1723141540543,45.0,157.35,157.28,7.63333472]
[1723141540718,45.0,157.35,157.29,20.0]
[1723141541536,45.0,157.35,157.27,20.0]
[1723141541739,45.0,157.35,157.3,24.43]
[1723141542048,15.7228,157.36,157.31,28.90358612]
[1723141542246,15.7228,157.36,157.31,21.27111657]
[1723141542649,6.0387,157.38,157.32,32.06211512]
[1723141542857,15.3916,157.4,157.34,24.43]
[1723141543149,6.3361,157.43,157.36,24.43]
[1723141543321,6.3361,157.43,157.37,1.27056766]
[1723141543517,6.3361,157.43,157.37,21.27056766]
[1723141543749,6.3361,157.43,157.37,20.0]
[1723141544151,6.3361,157.43,157.35,20.0]
[1723141544339,6.3361,157.43,157.36,7.63003553]
[1723141544540,6.3361,157.43,157.37,20.0]
[1723141545247,45.0,157.42,157.35,20.0]
[1723141545426,45.0,157.42,157.36,7.62994541]
[1723141545628,45.0,157.42,157.37,20.0]
[1723141546333,45.0,157.42,157.35,20.0]
[1723141546641,45.0,157.42,157.36,7.62990438]
[1723141547027,45.0,157.42,157.37,20.0]
[1723141547659,45.0,157.42,157.38,1.27062315]
[1723141547869,15.3916,157.44,157.39,1.27057739]
[1723141548070,15.3916,157.44,157.4,1.27051072]
[1723141549773,15.6114,157.49,157.42,24.43]
[1723141549959,15.6114,157.49,157.43,21.27023421]
[1723141550162,15.6114,157.49,157.43,20.0]
[1723141550684,15.6114,157.49,157.41,20.0]
[1723141551570,45.0,157.48,157.41,20.0]
[1723141551740,45.0,157.48,157.39,20.0]
[1723141552079,45.0,157.48,157.36,24.43]
[1723141552080,45.0,157.48,157.37,20.0]
[1723141552571,45.5,157.48,157.37,20.0]
[1723141552773,6.5058,157.47,157.37,20.0]
[1723141552944,45.0,157.46,157.37,20.0]
[1723141553143,45.0,157.46,157.36,26.8738567]
[1723141553357,45.0,157.46,157.37,20.0]
[1723141554547,45.0,157.46,157.38,24.43]
[1723141554778,45.0,157.46,157.39,20.0]
[1723141555782,15.5839,157.45,157.36,2.4438567]
[1723141555949,45.0,157.44,157.34,24.43]
[1723141556286,45.0,157.44,157.35,7.62967237]
[1723141556451,45.0,157.44,157.36,24.43]
[1723141556658,15.5839,157.45,157.36,24.43]
[1723141557270,15.5839,157.45,157.37,20.0]
[1723141557781,15.5839,157.45,157.38,25.70056953]
[1723141557984,15.5839,157.45,157.39,20.0]
[1723141559253,45.0,157.44,157.39,20.0]
[1723141559649,45.0,157.44,157.43,9.95478775]
[1723141559944,45.0,157.44,157.43,29.95478775]
[1723141562173,45.0,157.44,157.43,9.95478775]
[1723141562384,45.0,157.44,157.37,2.51724504]
[1723141562691,45.5,157.44,157.37,20.0]
[1723141562866,45.0,157.44,157.37,20.0]
[1723141563065,45.0,157.44,157.38,24.43]
[1723141563267,45.0,157.44,157.39,20.0]
[1723141564286,45.0,157.44,157.4,24.43]
[1723141564464,45.0,157.44,157.41,20.0]
[1723141567677,15.7344,157.48,157.42,24.43]
[1723141567883,6.6098,157.51,157.44,24.43]
[1723141568090,6.6475,157.56,157.48,24.43]
[1723141568270,6.6475,157.56,157.5,24.43]
[1723141568470,6.6475,157.56,157.51,21.26962569]
[1723141568892,15.2864,157.57,157.51,21.26962569]
[1723141569070,15.1364,157.57,157.51,21.26962569]
[1723141569274,15.1364,157.57,157.52,1.2695234]
[1723141569477,15.1364,157.57,157.52,25.6995234]
[1723141569678,15.1364,157.57,157.53,20.0]
[1723141570086,6.4827,157.6,157.53,20.0]
[1723141570392,6.4827,157.65,157.54,25.6992241]
[1723141570599,6.4827,157.65,157.55,21.26913329]
[1723141570895,6.4827,157.65,157.56,24.43]
[1723141571094,250.3334,157.68,157.56,24.43]
[1723141571095,250.3334,157.68,157.57,21.26892053]
[1723141571595,250.3334,157.68,157.57,20.0]
[1723141571993,265.6458,157.68,157.57,20.0]
[1723141572384,290.0758,157.68,157.57,20.0]
[1723141572590,296.4178,157.68,157.57,20.0]
[1723141572895,290.0758,157.68,157.57,20.0]
[1723141573605,16.6018,157.6,157.52,24.43]
[1723141573798,45.0,157.59,157.52,24.43]
[1723141574877,45.0,157.59,157.48,24.43]
[1723141575078,0.5,157.57,157.48,24.43]
[1723141575493,0.5,157.67,157.53,24.43]
[1723141575803,24.43,157.65,157.53,24.43]
[1723141575991,6.8435,157.64,157.51,39.4772]
[1723141576194,0.5,157.64,157.51,39.4772]
[1723141576602,0.5,157.64,157.52,20.0]
[1723141576906,45.5,157.64,157.52,20.0]
[1723141577090,22.3066,157.63,157.52,20.0]
[1723141577290,45.5,157.62,157.52,20.0]
[1723141577509,24.93,157.61,157.49,24.43]
[1723141577807,45.0,157.6,157.49,24.43]
[1723141578601,0.5,157.59,157.49,24.43]
[1723141578809,45.0,157.6,157.49,24.43]
[1723141578993,45.0,157.6,157.5,20.0]
[1723141579887,0.5,157.59,157.5,20.0]
[1723141580308,45.0,157.6,157.5,20.0]
[1723141580806,15.7778,157.59,157.47,26.87869497]
[1723141581104,45.0,157.58,157.47,26.87869497]
[1723141581302,45.0,157.58,157.49,24.43]
[1723141582100,45.0,157.58,157.5,20.0]
[1723141582700,0.5,157.57,157.47,26.87869497]
[1723141582995,6.4983,157.56,157.48,20.0]
[1723141583204,45.5,157.55,157.47,2.44869497]
[1723141583403,0.5,157.54,157.45,44.43]
[1723141584311,0.5,157.54,157.45,46.89176527]
[1723141589115,16.754,157.53,157.45,26.89176527]
[1723141589317,45.0,157.52,157.43,24.43]
[1723141589507,0.5,157.51,157.43,24.43]
[1723141590311,45.0,157.52,157.43,24.43]
[1723141590612,16.254,157.53,157.47,24.43]
[1723141590803,16.254,157.53,157.49,24.43]
[1723141591001,6.4983,157.56,157.51,24.43]
[1723141591213,16.254,157.57,157.52,20.0]
[1723141592123,16.254,157.57,157.5,20.0]
[1723141592519,45.0,157.56,157.5,20.0]
[1723141597624,6.4783,157.6,157.54,24.43]
[1723141597625,15.3587,157.59,157.54,24.43]
[1723141597825,15.3587,157.59,157.55,20.0]
[1723141598030,15.3587,157.59,157.56,24.43]
[1723141598208,15.3587,157.59,157.57,20.0]
[1723141598530,15.2073,157.63,157.57,20.0]
[1723141598726,6.3496,157.49,157.46,6.62537802]
[1723141598930,21.7883,157.59,157.46,6.62537802]
[1723141598931,15.2073,157.53,157.46,6.62537802]
[1723141599225,15.2073,157.53,157.48,24.43]
[1723141599425,6.581,157.54,157.48,24.43]
[1723141599733,21.8428,157.58,157.52,24.43]
[1723141599951,45.0,157.53,157.5,24.43]
[1723141600237,0.5,157.52,157.46,31.05754026]
[1723141600404,0.5,157.52,157.46,24.43]
[1723141600604,45.0,157.53,157.46,31.0564213]
[1723141600904,21.8428,157.58,157.52,24.43]
[1723141601099,22.3012,157.62,157.54,24.43]
[1723141601330,22.3012,157.62,157.56,24.43]
[1723141603034,22.3012,157.62,157.58,24.43]
[1723141604217,22.3012,157.62,157.56,24.43]
[1723141604721,0.5,157.61,157.56,24.43]
[1723141605340,22.3012,157.62,157.56,24.43]
[1723141605639,45.0,157.61,157.56,24.43]
[1723141610833,45.0,157.61,157.54,24.43]
[1723141611132,45.0,157.61,157.55,20.0]
[1723141611737,0.5,157.6,157.55,20.0]
[1723141611938,45.0,157.61,157.55,20.0]
[1723141612332,45.0,157.61,157.56,24.43]
[1723141613450,0.5,157.6,157.56,24.43]
[1723141613654,0.5,157.6,157.5,12.82552015]
[1723141613655,0.5,157.6,157.54,24.43]
[1723141614249,0.5,157.6,157.52,24.43]
[1723141614450,0.5,157.6,157.5,6.62272015]
[1723141614658,0.5,157.6,157.49,24.43]
[1723141615023,45.0,157.61,157.49,24.43]
[1723141615024,45.0,157.61,157.53,24.43]
[1723141615333,45.0,157.61,157.55,24.43]
[1723141615831,45.0,157.61,157.49,6.62538736]
[1723141615832,45.0,157.61,157.53,24.43]
[1723141616030,0.5,157.6,157.54,20.0]
[1723141616331,45.0,157.61,157.54,20.0]
[1723141620534,0.5,157.6,157.52,20.0]
[1723141620734,0.5,157.6,157.5,20.0]
[1723141621832,16.72,157.59,157.52,16.72]
[1723141622053,45.5,157.58,157.52,16.72]
[1723141622254,0.5,157.57,157.53,16.72]
[1723141623757,0.5,157.57,157.5,20.0]
[1723141624571,52.6677,157.56,157.49,6.62538736]
[1723141624856,45.5,157.55,157.42,24.38]
[1723141625061,24.88,157.54,157.43,7.62541761]
[1723141625265,45.0,157.53,157.43,7.62541761]
[1723141625447,0.5,157.52,157.43,7.62541761]
[1723141625641,45.5,157.53,157.43,7.62541761]
[1723141625847,45.0,157.53,157.43,7.62541761]
[1723141626068,45.0,157.53,157.44,24.38]
[1723141627667,45.0,157.53,157.45,20.0]
[1723141628465,45.0,157.53,157.46,24.38]
[1723141628965,0.5,157.52,157.46,24.38]
[1723141629166,21.9409,157.56,157.47,20.0]
[1723141629331,21.9409,157.56,157.48,24.38]
[1723141629536,21.9409,157.56,157.5,24.38]
[1723141629736,0.5,157.55,157.47,20.0]
[1723141629961,0.5,157.54,157.47,20.0]